Cogmind - Beta 13 @@@ ROGUE MODE // 2024.05.16 @ 21:11:27 Player: puppuppit Result: Self-destructed Performance ------------- Evolutions (6) 3000 Regions Visited (27) 5400 Robots Destroyed (491) 2455 Value Destroyed (22041) 22041 Prototype IDs (82) 1640 Alien Tech Used (0) 0 Bonus (13892) 13892 TOTAL SCORE: 48428 Bonus ------- Triggered High Security 500 High Alert Combat Kills 8094 Follower Combat Kills 1251 Entered Garrisons 1200 Used RIF Installer 500 Entered DSFs 500 Aligned with FarCom 300 Met Imprinter 300 Destroyed Z-Imprinter 1000 Acquired ECA 300 Friendly Fire -53 Cogmind --------- Core Integrity 338/1150 Matter 29/300 Energy 42/100 System Corruption 0% Temperature Cool (0) Movement Core (50) Location -4/Factory Parts ------- > --- POWER (1) -------- (None) > --- PROPULSION (6) --- (None) > --- UTILITY (10) ----- Experimental Optical Array Advanced Targeting Computer Improved Target Analyzer Experimental Core Analyzer Hacking Suite Relay Coupler [NC] (29) > --- WEAPON (2) ------- (None) > --- INVENTORY (5) ---- Zionite Biocell (600) Zionite Biocell (600) Matter Compressor (250) Peak State ------------ > --- POWER ------------ Mini Fusion Reactor > --- PROPULSION ------- Gravmag Array Antigrav Array Improved Q-thruster > --- UTILITY ---------- Experimental Coolant Injector Experimental Coolant Injector Gravity Neutralizer Advanced Targeting Computer Experimental Core Analyzer Layered Heavy Armor Plating System Shield Experimental System Shield > --- WEAPON ----------- Mass Driver Mass Driver > --- INVENTORY -------- Improved Q-thruster Improved Coolant Injector Zionite Biocell Zionite Biocell Precision Rocket Launcher [Rating: 119] Favorites ----------- Power Micro Fission Core Engine Light Ion Engine Power Core Micro Fission Core Reactor Zionite Light DM Reactor Propulsion Gravmag System Leg Aluminum Leg Wheel Wheel Hover Unit Gravmag System Flight Unit Improved Q-thruster Utility Core Analyzer Device Improved Cooling System Storage Medium Storage Unit Processor Core Analyzer Hackware Hacking Suite Protection Improved Propulsion Shielding Weapon Advanced Assault Cannon Energy Gun Backup Laser I Energy Cannon Improved EM Pulse Cannon Ballistic Gun Precision Assault Rifle Ballistic Cannon Advanced Assault Cannon Launcher Rocket Launcher Special Weapon Improved Remote Datajack Impact Weapon Heavy Mace Slashing Weapon Power Sword Build | -11 -10 -10 -10 -9 -8 -8 -7 -7 -7 -7 -7 -7 -7 -6 -6 -6 -6 -6 -6 -6 -5 -5 -5 -5 -4 -4 -4 ------- Run | Yrd Mat Min Exi Min Mat Gar Fac Gar Fac Low Low Zio Dee Pro Fac Was Fac Gar Fac DSF Fac Gar Fac Gar Fac Gar Fac Slots Evolved 12 | . . . . . 4 . 2 . . . . . . . 2 . . . . . 2 . . . 2 . . Power . | . . . . . . . . . . . . . . . . . . . . . . . . . . . . Propulsion 4 | . . . . . 2 . . . . . . . . . 1 . . . . . . . . . 1 . . Utility 8 | . . . . . 2 . 2 . . . . . . . 1 . . . . . 2 . . . 1 . . Weapon . | . . . . . . . . . . . . . . . . . . . . . . . . . . . . Parts Attached 499 | 10 11 5 3 14 16 12 53 11 20 4 8 11 19 1 6 1 44 36 5 6 73 23 8 32 16 39 12 Power 49 | 1 1 2 . 1 2 3 2 . 4 . 1 . 2 . . . 3 3 . . 3 3 . 4 4 10 . Engine 9 | 1 1 2 . 1 . . . . . . . . . . . . . . . . . 1 . 2 1 . . Core 24 | . . . . . 2 3 2 . 4 . 1 . . . . . 2 1 . . . 2 . 2 3 2 . Reactor 16 | . . . . . . . . . . . . . 2 . . . 1 2 . . 3 . . . . 8 . Propulsion 136 | 4 4 . . 4 5 5 12 4 4 2 2 4 7 1 3 . 17 8 . . 19 8 . 7 1 9 6 Treads . | . . . . . . . . . . . . . . . . . . . . . . . . . . . . Leg 3 | . . . . 1 . 2 . . . . . . . . . . . . . . . . . . . . . Wheel 14 | 4 4 . . 3 3 . . . . . . . . . . . . . . . . . . . . . . Hover 75 | . . . . . 2 . 8 3 4 2 2 4 7 1 2 . 16 6 . . 8 . . . 1 3 6 Flight 44 | . . . . . . 3 4 1 . . . . . . 1 . 1 2 . . 11 8 . 7 . 6 . Utility 140 | 3 4 3 2 1 4 . 16 1 5 . . 7 6 . 3 1 13 12 3 1 23 7 3 9 8 3 2 Device 66 | 2 2 1 . . 1 . 6 . . . . 1 1 . . 1 7 9 3 1 16 2 2 5 3 2 1 Storage 12 | 1 . . 1 1 . . 2 . 1 . . . 1 . . . 1 . . . . 2 . . 2 . . Processor 18 | . . . . . 2 . 3 . . . . 5 . . . . . 1 . . 4 1 . . 1 . 1 Hackware 17 | . . . . . 1 . 4 . . . . . . . 2 . 5 . . . 1 . 1 . 2 1 . Protection 27 | . 2 2 1 . . . 1 1 4 . . 1 4 . 1 . . 2 . . 2 2 . 4 . . . Artifact . | . . . . . . . . . . . . . . . . . . . . . . . . . . . . Weapon 174 | 2 2 . 1 8 5 4 23 6 7 2 5 . 4 . . . 11 13 2 5 28 5 5 12 3 17 4 Energy Gun 1 | . . . . . . 1 . . . . . . . . . . . . . . . . . . . . . Energy Cannon 5 | . . . . . 1 . 2 . . . . . . . . . . . . 1 1 . . . . . . Ballistic Gun 11 | 2 . . . . . . . . 4 . 1 . . . . . 1 . . . . 3 . . . . . Ballistic Cannon 106 | . 2 . 1 5 1 . 18 4 2 2 3 . 2 . . . 7 11 1 2 18 . 4 8 3 9 3 Launcher 46 | . . . . 3 3 3 3 2 1 . 1 . 2 . . . 2 . . 2 9 2 1 4 . 8 . Special Weapon 1 | . . . . . . . . . . . . . . . . . . . . . . . . . . . 1 Impact Weapon 1 | . . . . . . . . . . . . . . . . . . . 1 . . . . . . . . Slashing Weapon 3 | . . . . . . . . . . . . . . . . . 1 2 . . . . . . . . . Piercing Weapon . | . . . . . . . . . . . . . . . . . . . . . . . . . . . . Special Melee Weapon . | . . . . . . . . . . . . . . . . . . . . . . . . . . . . Unidentified Prototypes 28 | . . . . . 1 . 1 . 3 . . 4 7 . 2 . 2 1 . . 6 . . . . . 1 Corrupted Parts 1 | . . . . . . 1 . . . . . . . . . . . . . . . . . . . . . System Corruption 1 | . . . . . . 1 . . . . . . . . . . . . . . . . . . . . . Parts Lost 105 | . 1 . . 4 4 6 6 3 3 . 1 . 7 . . . 13 13 . 2 6 5 . 7 . 22 2 Power 12 | . 1 . . 1 1 . . . . . 1 . . . . . 1 1 . . . 1 . 1 . 4 . Propulsion 50 | . . . . 2 1 4 3 3 1 . . . 3 . . . 7 7 . 1 3 . . 3 . 11 1 Utility 25 | . . . . . . . 3 . 1 . . . 2 . . . 2 3 . 1 3 3 . 2 . 4 1 Weapon 18 | . . . . 1 2 2 . . 1 . . . 2 . . . 3 2 . . . 1 . 1 . 3 . Highest Loss Streak 10 | . 1 . . 3 4 3 1 1 1 . 1 . 5 . . . 7 9 . 1 2 2 . 6 . 10 2 To Critical Strikes . | . . . . . . . . . . . . . . . . . . . . . . . . . . . . Average Slot Usage (%) 90 | . 99 100 99 86 81 83 91 98 94 99 100 99 93 92 94 100 90 77 85 79 78 97 100 98 92 86 65 Engine 1 | . 13 14 14 10 3 . . . . . . . . . . . . . . . . . . . 2 . . Core 3 | . . . . . 4 8 6 7 7 7 7 7 3 . . . . 1 . . . 2 5 4 2 . . Reactor 1 | . . . . . . . . . . . . . 3 7 6 6 4 4 6 6 4 1 . . . 3 . Wheel 4 | . 28 28 28 22 29 7 . . . . . . . . . . . . . . . . . . . . . Hover 15 | . . . . . 2 7 17 29 25 30 30 30 29 30 32 33 28 21 26 21 9 . . . . 3 18 Flight 6 | . . . . . . 6 6 . 1 . . . . . . . . . . . 9 26 29 28 26 21 . Device 9 | . 14 14 14 14 9 . 6 7 7 7 7 2 . . . 5 3 7 12 11 13 16 17 16 13 17 4 Storage 4 | . 7 . 2 14 9 9 7 7 7 7 7 7 7 7 6 6 6 6 6 6 . . . . 2 . . Processor 14 | . . . . . 1 18 15 15 15 15 15 21 25 23 20 20 16 9 6 6 12 26 23 23 21 20 19 Hackware 8 | . . . . . 3 9 14 7 7 7 7 6 . . 8 13 16 13 6 6 9 2 4 5 11 12 15 Protection 3 | . 7 14 11 . . . . 6 6 7 7 6 6 7 6 . . 1 6 6 3 4 5 4 2 . . Ballistic Gun 1 | . 13 . . . . . . . 13 2 . . . . . . . . . . . 4 . . . . . Ballistic Cannon 10 | . 14 28 28 22 12 2 13 12 1 11 14 15 14 15 13 13 8 7 7 7 8 5 10 10 7 5 2 Naked Turns . | . . . . . . . . . . . . . . . . . . . . . . . . . . . . Heaviest Build 60 | 13 19 19 22 22 23 20 32 32 34 34 34 34 40 40 40 34 37 51 60 60 51 36 35 43 47 39 14 Greatest Support 68 | 26 26 26 26 26 46 36 36 36 35 35 35 35 51 51 61 61 61 56 68 68 61 37 37 37 47 47 48 Greatest Overweight (x) 3 | . . . . 3 . 1 1 1 1 . . . 1 . . . 2 3 . 1 2 1 . 1 . 2 1 Average Overweight (x) . | . . . . . . . . . . . . . . . . . . . . . . . . . . . . Largest Inventory Capacity 10 | 8 8 5 10 10 8 8 10 10 10 10 10 10 10 10 10 10 10 10 10 10 10 5 5 5 5 5 5 Average Capacity 7 | 7 6 5 5 9 8 8 8 10 10 10 10 10 10 10 10 10 10 10 10 10 5 5 5 5 5 5 5 Most Carried 10 | 4 8 5 10 10 8 8 10 9 10 10 10 10 10 10 10 9 10 10 10 10 10 5 5 5 5 5 5 Average Carried 7 | 1 5 5 5 8 6 7 8 6 9 9 9 9 9 10 9 9 9 9 9 10 5 4 5 4 4 4 4 Final Capacity 10 | 8 5 5 10 8 8 8 10 10 10 10 10 10 10 10 10 10 10 10 10 10 5 5 5 5 5 5 5 Final Carried 10 | 4 5 5 10 8 8 8 9 8 9 10 10 10 10 10 9 9 8 10 10 10 5 5 5 5 5 5 3 Class Distribution -------------------- 31% | Hacker-Mutant 31% | Mutant 20% | Scavenger-Mutant 10% | Scavenger-Sprinter 3% | Hacker-Sprinter Dominant Class ---------------- Mutant | -10/Materials Scavenger-Mutant | -10/Mines Scavenger-Mutant | -10/Exiles Scavenger-Mutant | -9/Mines Scavenger-Mutant | -8/Materials Scavenger-Mutant | -8/Garrison Hacker-Mutant | -7/Factory Mutant | -7/Garrison Mutant | -7/Factory Mutant | -7/Lower Caves Mutant | -7/Lower Caves Mutant | -7/Zion Mutant | -7/Deep Caves Mutant | -6/Proximity Caves Mutant | -6/Factory Hacker-Mutant | -6/Waste Hacker-Mutant | -6/Factory Hacker-Mutant | -6/Garrison Scavenger-Mutant | -6/Factory Scavenger-Mutant | -6/DSF Hacker-Mutant | -5/Factory Scavenger-Sprinter | -5/Garrison Scavenger-Sprinter | -5/Factory Scavenger-Sprinter | -5/Garrison Scavenger-Sprinter | -4/Factory Scavenger-Sprinter | -4/Garrison Hacker-Mutant | -4/Factory Resources | -11 -10 -10 -10 -9 -8 -8 -7 -7 -7 -7 -7 -7 -7 -6 -6 -6 -6 -6 -6 -6 -5 -5 -5 -5 -4 -4 -4 ----------- Run | Yrd Mat Min Exi Min Mat Gar Fac Gar Fac Low Low Zio Dee Pro Fac Was Fac Gar Fac DSF Fac Gar Fac Gar Fac Gar Fac Matter Collected 19341 | 360 740 383 155 471 447 445 2605 437 885 113 288 119 319 124 622 479 1105 818 293 67 2566 1298 148 1757 374 1785 138 Remotely 145 | . 145 . . . . . . . . . . . . . . . . . . . . . . . . . . Salvage Created 18981 | 196 787 215 . 555 410 731 2528 246 1857 139 108 . 169 62 747 1069 1206 1036 310 167 3062 1154 202 1234 341 418 32 Parts 788 | 19 47 12 . 17 17 40 131 12 94 5 7 . 12 6 25 . 36 35 . 10 117 48 7 56 14 13 8 Haulers Intercepted 21 | . 2 . . . 1 . 5 . 2 . . . . . 1 . 1 . . . 7 . 1 . 1 . . Recyclers Shooed 19 | 1 1 1 . 1 . . 2 . 1 . . . . . 2 . 1 . 2 . 7 . . . . . . Parts Field Recycled . | . . . . . . . . . . . . . . . . . . . . . . . . . . . . Retrieved Matter . | . . . . . . . . . . . . . . . . . . . . . . . . . . . . Parts Self-Destructed 17 | . . . . . . . . . . 5 6 . . 6 . . . . . . . . . . . . . Prevented . | . . . . . . . . . . . . . . . . . . . . . . . . . . . . Kills | -11 -10 -10 -10 -9 -8 -8 -7 -7 -7 -7 -7 -7 -7 -6 -6 -6 -6 -6 -6 -6 -5 -5 -5 -5 -4 -4 -4 ------- Run | Yrd Mat Min Exi Min Mat Gar Fac Gar Fac Low Low Zio Dee Pro Fac Was Fac Gar Fac DSF Fac Gar Fac Gar Fac Gar Fac Combat Hostiles Destroyed 365 | . 11 3 . 13 9 18 42 6 26 1 6 . 6 3 2 5 16 11 . 4 57 31 3 45 3 42 2 Melee 2 | . . . . . . . . . . . . . . . . . 2 . . . . . . . . . . Guns 37 | . 8 . . . . . . . 22 . . . . . . . . . . . . 7 . . . . . Cannons 206 | . 3 3 . 7 4 9 35 6 1 1 6 . 3 3 2 5 7 11 . 2 22 15 2 31 2 24 2 AOE 120 | . . . . 6 5 9 7 . 3 . . . 3 . . . 7 . . 2 35 9 1 14 1 18 . Classes Destroyed 24 | 2 6 . . 1 3 3 1 . . . . . 1 . . 1 . 1 . 1 3 1 . . . . . Worker 34 | . 3 3 . 3 . . 7 . 4 . . . . . 3 . 3 . 2 . 4 . . . 1 . 1 Builder 23 | . 3 . . 2 1 . 6 . 3 . . . . . 2 . 3 . . . 3 . . . . . . Tunneler 8 | 5 . 1 . 1 . . . . . . . . . . . . . . . . 1 . . . . . . Hauler 21 | . 2 . . . 1 . 5 . 2 . . . . . 1 . 1 . . . 7 . 1 . 1 . . Recycler 49 | 1 4 2 . 6 1 . 12 . 4 . . . . . 4 . 6 . 2 . 6 . . . 1 . . Carrier 1 | . . . . . . . . . . . . . . . . . . . . . 1 . . . . . . Mechanic 7 | . . . . . 1 . 2 . . . . . . . 1 . . . . . 3 . . . . . . Operator 8 | . . . . . 1 . 3 . 2 . . . . . . . 1 . . . . . . . 1 . . Watcher 14 | . 3 . . . 1 . 2 . . . . . . . 1 . 1 1 . . 4 . 1 . . . . Swarmer 76 | . 3 3 . . . . 8 . . . 2 . . 3 . . 5 1 . . 15 14 . 17 . 5 . Cutter 6 | . . . . . . . . . . . . . . . . . . 3 . 1 . . . . . . 2 Saboteur 1 | . . . . . . . . . . . . . . . . . . . . . 1 . . . . . . Grunt 136 | . 8 . . 2 7 12 18 4 18 . 3 . . . 1 . 9 3 . . 23 7 1 15 2 3 . Brawler 11 | . . . . . . 2 4 . 2 . . . . . . . . 2 . . 1 . . . . . . Duelist 12 | . . . . . . 1 1 . 1 . . . . . . . . . . . . 3 . 4 . 2 . Protector 3 | . . . . . . . . . . . . . . . . . . . . . 3 . . . . . . Sentry 29 | . . . . . 2 . 7 2 2 1 . . . . . . . . . . 2 5 1 4 1 2 . Specialist 8 | . . . . . . . . . . . . . . . . . . . . 2 6 . . . . . . Hunter 11 | . . . . . . 3 . . . . . . . . 1 . . . . 1 2 1 1 2 . . . Programmer 18 | . . . . . . . 4 . 3 . 1 . . . . . 2 2 . . 4 . . . . 2 . Behemoth 4 | . . . . . . . . . . . . . . . . . . . . . . 1 . 3 . . . Compactor 5 | . . . . . . . . . . . . . . . . 5 . . . . . . . . . . . Z-Light 6 | . . . . . . . . . . . . . 6 . . . . . . . . . . . . . . Assembled 39 | . . . . 11 . . . . . . . . . . . . . . . . . . . . . 28 . Best Kill Streak 13 | 6 10 2 . 8 6 7 9 3 6 1 2 . 4 3 5 2 9 3 2 2 13 7 4 13 4 9 2 Combat Bots Only 13 | . 4 2 . 8 5 7 7 3 5 1 2 . 4 3 1 2 5 3 . 2 11 7 2 13 2 9 2 Max Kills in Single Turn 6 | 2 1 1 . 2 2 3 4 1 2 1 1 . 2 2 2 1 5 1 1 1 6 4 1 6 3 3 1 Gunslinging 1 | . . . . . . . . . 1 . . . . . . . . . . . . . . . . . . Exploded 6 | . . . . 2 2 3 4 . 1 . . . 2 . . . 3 . . 1 5 4 1 6 1 3 . Melee 1 | . . . . . . . . . . . . . . . . . 1 . . . . . . . . . . Uniques/NPCs Destroyed 1 | . . . . . . . . . . . . . 1 . . . . . . . . . . . . . . Z-Imprinter (-7/Deep Caves) Combat | -11 -10 -10 -10 -9 -8 -8 -7 -7 -7 -7 -7 -7 -7 -6 -6 -6 -6 -6 -6 -6 -5 -5 -5 -5 -4 -4 -4 -------- Run | Yrd Mat Min Exi Min Mat Gar Fac Gar Fac Low Low Zio Dee Pro Fac Was Fac Gar Fac DSF Fac Gar Fac Gar Fac Gar Fac Hostile Shots Fired 1851 | . 49 18 . 33 38 64 241 82 153 17 49 . 57 16 16 . 111 294 . 67 160 66 10 95 4 174 37 Missed 783 | . 9 4 . 11 17 26 124 43 52 9 25 . 24 9 6 . 47 137 . 25 77 22 6 26 1 71 12 Damage Taken 17341 | . 453 108 . 501 381 610 1345 483 1145 97 318 . 981 119 150 . 1378 1805 . 866 1704 875 114 1370 61 1854 623 Core 3291 | . 114 . . 73 61 138 212 88 138 . 60 . 146 . 20 . 265 490 . 28 192 173 26 255 . 536 276 Absorbed by Shields 183 | . . . . . . . . . . . . . . . . . . . . . . 42 . 102 . 39 . Redirected to Shielding 302 | . . . . . . . . . 37 9 53 . 105 . . . . 98 . . . . . . . . . Ignored by Resistances 100 | . . . . . . . . . 100 . . . . . . . . . . . . . . . . . . Regen/Repaired (Parts) 1596 | . . . . . . . 190 . 113 . . 643 . . . . 24 . . . 626 . . . . . . Core Remaining (%) 39 | 100 . . . 25 . 63 . . . . . . . 8 . . . . . 5 . . . 35 . . . Volleys Fired 1254 | 10 72 23 . 41 61 46 163 38 84 5 17 . 17 4 47 40 67 49 . 14 130 80 10 99 10 110 17 Largest 2 | 2 2 2 . 2 2 2 2 2 2 2 2 . 2 2 2 2 2 2 . 2 2 2 2 2 2 2 1 Hottest 135 | 40 78 78 . 78 102 102 117 92 96 96 96 . 96 96 96 96 96 123 . 123 135 118 114 132 132 132 65 Shots Fired 2200 | 20 144 46 . 74 83 58 319 56 166 10 32 . 33 8 93 77 123 74 1 27 224 145 20 179 16 155 17 Gun 316 | 20 78 . . . . 3 . . 152 . . . . . . . 4 . . . . 59 . . . . . Cannon 1749 | . 66 46 . 67 66 33 312 49 11 10 31 . 28 8 93 77 115 74 1 19 201 82 19 173 16 138 14 Launcher 132 | . . . . 7 17 22 7 7 3 . 1 . 5 . . . 4 . . 8 23 4 1 6 . 17 . Special 3 | . . . . . . . . . . . . . . . . . . . . . . . . . . . 3 Kinetic 2015 | 20 144 46 . 67 65 13 307 49 163 10 31 . 28 8 93 77 115 74 1 19 184 141 19 173 16 138 14 Thermal 7 | . . . . . . 3 . . . . . . . . . . 4 . . . . . . . . . . Explosive 125 | . . . . 7 17 22 7 . 3 . 1 . 5 . . . 4 . . 8 23 4 1 6 . 17 . Electromagnetic 50 | . . . . . 1 20 5 7 . . . . . . . . . . . . 17 . . . . . . Robot Hit Streak 23 | 5 9 4 . 13 5 12 12 9 23 16 6 . 4 5 13 20 17 8 . 4 16 13 6 18 11 11 3 Robot Miss Streak 8 | 4 3 3 . 2 6 2 7 5 1 1 3 . 2 1 1 2 6 8 . 4 3 3 1 3 1 4 2 Penetration Max 2 | . . . . . . . 1 . . . . . . . . . . 1 . . 1 2 . . . . . Secondary Targets 5 | . . . . . . . . . 5 . . . . . . . . . . . . . . . . . . Max Gunslinging Chain 1 | . . . . . . . . . 1 . . . . . . . . . . . . . . . . . . Shots Hit Robots 1383 | 10 93 23 . 41 40 26 183 27 131 7 19 . 15 5 44 67 88 49 7 14 153 101 13 118 10 90 9 Core Hits 945 | 7 34 9 . 27 27 35 128 27 77 3 11 . 17 4 24 16 48 31 . 6 174 55 8 81 13 69 14 Critical Kills 23 | . . . . . . . . . 1 . . . . . . . . . . . 9 13 . . . . . Critical Parts Destroyed 25 | . . . . . . . . . 1 . . . . . . . . . 1 . 4 19 . . . . . Critical Strikes 139 | . . 1 . 2 1 . 23 1 4 . 1 . 1 . 1 . 11 4 1 . 30 36 2 12 1 7 . Destroy 49 | . . . . . . . . . 2 . . . . . . . . . . . 14 33 . . . . . Blast 87 | . . 1 . 2 1 . 23 1 2 . 1 . 1 . 1 . 10 3 . . 16 3 2 12 1 7 . Smash 1 | . . . . . . . . . . . . . . . . . . . 1 . . . . . . . . Sever 2 | . . . . . . . . . . . . . . . . . 1 1 . . . . . . . . . Melee Attacks 40 | . . . . . . . . . . . . . . . . . 15 18 7 . . . . . . . . Impact 7 | . . . . . . . . . . . . . . . . . . . 7 . . . . . . . . Slashing 33 | . . . . . . . . . . . . . . . . . 15 18 . . . . . . . . . Piercing . | . . . . . . . . . . . . . . . . . . . . . . . . . . . . Sneak Attacks 10 | . . . . . . . . . . . . . . . . . 4 . 6 . . . . . . . . Combat Hostiles . | . . . . . . . . . . . . . . . . . . . . . . . . . . . . Follow-up Attacks . | . . . . . . . . . . . . . . . . . . . . . . . . . . . . Damage Inflicted 55654 | 145 1491 501 . 1278 1463 1338 6264 627 3092 220 669 . 989 162 1194 1832 3924 2486 612 836 10679 3079 520 5961 831 4970 491 Guns 4437 | 145 632 . . . . . . . 2448 . . . . . . . 10 . . . . 1202 . . . . . Cannons 32114 | . 859 501 . 820 669 539 5187 487 198 220 578 . 435 162 1194 1832 2158 1306 . 499 4568 1132 462 4307 430 3196 375 Explosions 16728 | . . . . 458 794 799 1077 140 446 . 91 . 554 . . . 1177 . . 337 6111 745 58 1654 401 1770 116 Melee 2371 | . . . . . . . . . . . . . . . . . 579 1180 612 . . . . . . . . Ramming 4 | . . . . . . . . . . . . . . . . . . . . . . . . . . 4 . Kinetic 35585 | 145 1491 501 . 820 645 136 5017 487 2646 220 578 . 435 162 1194 1832 2158 1306 . 499 4209 2334 462 4307 430 3196 375 Thermal 973 | . . . . 75 . 158 . . . . . . . . . . 10 . . . 369 . . . 361 . . Explosive 15469 | . . . . 383 794 641 1077 . 446 . 91 . 554 . . . 1177 . . 337 5742 745 58 1654 . 1770 . Electromagnetic 1252 | . . . . . 24 403 170 140 . . . . . . . . . . . . 359 . . . 40 . 116 Impact 612 | . . . . . . . . . . . . . . . . . . . 612 . . . . . . . . Slashing 1759 | . . . . . . . . . . . . . . . . . 579 1180 . . . . . . . . . Piercing . | . . . . . . . . . . . . . . . . . . . . . . . . . . . . Highest Corruption 21 | . . . . . . 1 4 . 3 3 3 3 . . . 20 21 20 20 18 10 . . . . . . Average Corruption 11 | . . . . . . 1 3 . 1 3 3 3 . . . 12 20 19 19 18 7 . . . . . . Corruption Purged 22 | . . . . . . . 4 . . . . . . . . . 1 5 2 . 10 . . . . . . Corruption Blocked . | . . . . . . . . . . . . . . . . . . . . . . . . . . . . Effects 254 | . . . . . . 6 23 . 6 9 6 1 . . . 8 74 80 12 2 27 . . . . . . Message Errors 61 | . . . . . . 1 7 . 3 2 . . . . . 2 14 26 1 1 4 . . . . . . Matter Fused 47 | . . . . . . 1 3 . . . 1 1 . . . 1 15 15 5 . 5 . . . . . . Heat Flow Errors 29 | . . . . . . . 2 . . 2 2 . . . . 2 10 7 2 . 2 . . . . . . Energy Discharges 31 | . . . . . . 1 3 . 1 1 . . . . . 1 11 8 . . 5 . . . . . . Parts Rejected 5 | . . . . . . . . . . . 1 . . . . . 2 . . 1 1 . . . . . . Parts Fused 1 | . . . . . . . . . . . . . . . . . . 1 . . . . . . . . . Data Loss (minor) 34 | . . . . . . 2 2 . . 3 2 . . . . 1 7 11 3 . 3 . . . . . . Data Loss (major) 11 | . . . . . . . 2 . 1 1 . . . . . . 2 5 . . . . . . . . . Misfires 10 | . . . . . . . 1 . . . . . . . . . 4 2 1 . 2 . . . . . . Alerts 3 | . . . . . . . 1 . . . . . . . . . . . . . 2 . . . . . . Misdirections 4 | . . . . . . . . . . . . . . . . . 1 3 . . . . . . . . . Weapon Failures 18 | . . . . . . 1 2 . 1 . . . . . . 1 8 2 . . 3 . . . . . . Overload Shots . | . . . . . . . . . . . . . . . . . . . . . . . . . . . . Overflow Damage 1604 | . 21 12 . 96 21 . 64 . 10 . 37 . 20 . 33 . 204 131 399 13 170 . . 108 31 230 4 Projectiles 570 | . 21 12 . 48 16 . 64 . 10 . 37 . 5 . 33 . 51 15 . 11 88 . . 28 7 120 4 Explosions 453 | . . . . 48 5 . . . . . . . 15 . . . 87 . . 2 82 . . 80 24 110 . Melee 581 | . . . . . . . . . . . . . . . . . 66 116 399 . . . . . . . . Knockbacks 219 | . 17 3 . 10 3 2 37 13 1 2 3 . . 1 19 . 21 11 4 5 21 7 1 11 . 23 4 Impact 4 | . . . . . . . . . . . . . . . . . . . 4 . . . . . . . . Kinetic 199 | . 17 3 . 10 3 2 34 9 1 2 3 . . 1 17 . 20 9 . 5 19 7 1 11 . 21 4 Secondary 16 | . . . . . . . 3 4 . . . . . . 2 . 1 2 . . 2 . . . . 2 . Self-Inflicted Damage 514 | . . . . 65 80 64 49 8 . . . . . . . . 9 . . . 69 47 26 18 . 57 22 Shots 18 | . . . . 3 3 2 1 1 . . . . . . . . 1 . . . 1 1 1 1 . 2 1 Rammed 2 | . . . . . . . . . . . . . . . . . . . . . . . . . . 2 . Targets Rammed 2 | . . . . . . . . . . . . . . . . . . . . . . . . . . 2 . Kicked . | . . . . . . . . . . . . . . . . . . . . . . . . . . . . Crushed . | . . . . . . . . . . . . . . . . . . . . . . . . . . . . Highest Temperature 556 | . 216 25 . 18 17 356 282 . . 199 135 541 206 124 307 465 556 277 245 135 203 244 108 186 78 355 10 Average Temperature 88 | . 70 16 . 9 5 97 64 . . 89 71 269 83 62 96 183 154 98 100 36 77 63 48 62 34 123 7 Received Heat Transfer 4635 | . 222 . . 126 207 279 411 102 552 21 81 . 297 36 36 . 315 444 . 90 399 468 27 264 18 240 . Effects 16 | . 1 . . . . 1 1 . . . . . . . 3 2 5 . . . . . . . . 3 . Shutdowns 1 | . . . . . . 1 . . . . . . . . . . . . . . . . . . . . . Energy Bleed 4 | . . . . . . . 1 . . . . . . . . 1 1 . . . . . . . . 1 . Interference 9 | . 1 . . . . . . . . . . . . . 3 1 3 . . . . . . . . 1 . Damage (minor) 2 | . . . . . . . . . . . . . . . . . 1 . . . . . . . . 1 . Siege Activations . | . . . . . . . . . . . . . . . . . . . . . . . . . . . . Robots Corrupted . | . . . . . . . . . . . . . . . . . . . . . . . . . . . . Combat Hostiles . | . . . . . . . . . . . . . . . . . . . . . . . . . . . . Parts Fried 6 | . . . . . . . 2 . . . . . . . . . . . 4 . . . . . . . . Impact Corruptions 12 | . . . . . . . . . . . . . . . . . . . 11 . 1 . . . . . . Robots Melted . | . . . . . . . . . . . . . . . . . . . . . . . . . . . . Combat Hostiles . | . . . . . . . . . . . . . . . . . . . . . . . . . . . . Parts Melted . | . . . . . . . . . . . . . . . . . . . . . . . . . . . . Heat Transferred 812 | . . . . 100 . 125 . . . . . . . . . . 37 . . . 300 . . . 250 . . Parts Sabotaged . | . . . . . . . . . . . . . . . . . . . . . . . . . . . . Parts Stolen . | . . . . . . . . . . . . . . . . . . . . . . . . . . . . Parts Stripped . | . . . . . . . . . . . . . . . . . . . . . . . . . . . . Power Chain Reactions 4 | . . . . . . 1 1 . . . . . . . . . . . . . 2 . . . . . . Alert | -11 -10 -10 -10 -9 -8 -8 -7 -7 -7 -7 -7 -7 -7 -6 -6 -6 -6 -6 -6 -6 -5 -5 -5 -5 -4 -4 -4 ------- Run | Yrd Mat Min Exi Min Mat Gar Fac Gar Fac Low Low Zio Dee Pro Fac Was Fac Gar Fac DSF Fac Gar Fac Gar Fac Gar Fac Peak Influence 2690 | 30 296 163 . 111 326 1099 1490 2117 1622 . . . . . 344 92 421 943 499 474 1865 2431 1649 2690 1740 2188 1370 Initial 1409 | . 19 57 . . 13 213 576 1026 1110 . . . . . 128 92 54 294 494 275 248 1305 1276 1154 1409 1204 1127 Average 886 | 12 191 80 . 36 177 656 919 1631 1355 . . . . . 183 77 198 670 389 373 779 1952 1482 2118 1601 1790 1161 Maximum Alert Level 5 | . 1 . . . 1 3 4 5 5 . . . . . 1 . 2 3 2 2 5 5 5 5 5 5 4 Low Security (%) 20 | 100 48 100 . 100 57 . . . . . . . . . 78 100 50 . . . 5 . . . . . . Level 1 16 | . 51 . . . 42 13 . . . . . . . . 21 . 45 9 93 51 38 . . . . . . Level 2 12 | . . . . . . 50 36 . . . . . . . . . 4 35 6 48 13 . . . . . . Level 3 12 | . . . . . . 35 28 3 . . . . . . . . . 55 . . 11 . . . . . . Level 4 21 | . . . . . . . 35 35 95 . . . . . . . . . . . 26 29 53 19 46 23 100 Level 5 17 | . . . . . . . . 60 4 . . . . . . . . . . . 3 70 46 80 53 76 . High Security . | . . . . . . . . . . . . . . . . . . . . . 2 . . . . . . Max Security . | . . . . . . . . . . . . . . . . . . . . . . . . . . . . Squads Dispatched 78 | . 2 . . . 3 . 17 . 14 . . . . . 4 . 17 . . 3 11 . 2 . 3 . 2 Investigation 19 | . 1 . . . 1 . 4 . 2 . . . . . 2 . 7 . . . 1 . 1 . . . . Extermination 11 | . . . . . . . 3 . 3 . . . . . . . 3 . . . 1 . . . 1 . . Reinforcement 30 | . 1 . . . 2 . 5 . 3 . . . . . 2 . 4 . . 3 6 . 1 . 2 . 1 Assault 11 | . . . . . . . 4 . 3 . . . . . . . . . . . 3 . . . . . 1 Garrison 7 | . . . . . . . 1 . 3 . . . . . . . 3 . . . . . . . . . . Intercept . | . . . . . . . . . . . . . . . . . . . . . . . . . . . . Searches Triggered . | . . . . . . . . . . . . . . . . . . . . . . . . . . . . Construction Impeded 10 | . . . . . . . 2 . 1 . . . . . 1 . 2 . . . 3 . . . 1 . . Haulers Reinforced 5 | . . . . . . . 1 . . . . . . . . . 1 . . . 2 . 1 . . . . Active Scanning Responses . | . . . . . . . . . . . . . . . . . . . . . . . . . . . . Cargo Convoy Interrupts 1 | . . . . . . . . . . . . . . . . . . . . . 1 . . . . . . Stealth | -11 -10 -10 -10 -9 -8 -8 -7 -7 -7 -7 -7 -7 -7 -6 -6 -6 -6 -6 -6 -6 -5 -5 -5 -5 -4 -4 -4 --------- Run | Yrd Mat Min Exi Min Mat Gar Fac Gar Fac Low Low Zio Dee Pro Fac Was Fac Gar Fac DSF Fac Gar Fac Gar Fac Gar Fac Distress Signals 8 | . . . . . 2 . 4 . . . . . . . . . 2 . . . . . . . . . . Communications Jammed . | . . . . . . . . . . . . . . . . . . . . . . . . . . . . Distress Signals . | . . . . . . . . . . . . . . . . . . . . . . . . . . . . Times Spotted 593 | . 16 4 . 16 16 21 76 32 45 7 18 . 12 13 14 5 38 21 . 8 74 32 6 37 4 74 4 Peak Tracking Total 13 | . 4 3 . 4 5 7 7 13 6 5 4 . 8 5 6 2 8 7 . 4 12 7 3 7 1 12 4 Tactical Retreats 60 | . . . . . 1 2 5 6 4 1 5 . . 4 2 . 8 4 . 1 1 2 . 3 . 11 . Traps | -11 -10 -10 -10 -9 -8 -8 -7 -7 -7 -7 -7 -7 -7 -6 -6 -6 -6 -6 -6 -6 -5 -5 -5 -5 -4 -4 -4 ------- Run | Yrd Mat Min Exi Min Mat Gar Fac Gar Fac Low Low Zio Dee Pro Fac Was Fac Gar Fac DSF Fac Gar Fac Gar Fac Gar Fac Traps Triggered 64 | . . . . . . 5 3 10 3 . . . . . 1 . 4 6 . . 1 10 1 14 . 6 . Indirectly . | . . . . . . . . . . . . . . . . . . . . . . . . . . . . Trap Hack Attempts . | . . . . . . . . . . . . . . . . . . . . . . . . . . . . Triggered . | . . . . . . . . . . . . . . . . . . . . . . . . . . . . Disarmed 14 | . . . . . . . . . . . . . . . . . 13 . . . . . 1 . . . . Reprogrammed 4 | . . . . . . . 4 . . . . . . . . . . . . . . . . . . . . Reused . | . . . . . . . . . . . . . . . . . . . . . . . . . . . . Traps Extracted . | . . . . . . . . . . . . . . . . . . . . . . . . . . . . Installed . | . . . . . . . . . . . . . . . . . . . . . . . . . . . . Triggered 1 | . . . . . . . . . . . . . . 1 . . . . . . . . . . . . . Machines | -11 -10 -10 -10 -9 -8 -8 -7 -7 -7 -7 -7 -7 -7 -6 -6 -6 -6 -6 -6 -6 -5 -5 -5 -5 -4 -4 -4 ---------- Run | Yrd Mat Min Exi Min Mat Gar Fac Gar Fac Low Low Zio Dee Pro Fac Was Fac Gar Fac DSF Fac Gar Fac Gar Fac Gar Fac Machines Disabled 82 | . 2 1 . 2 1 8 11 6 . . . . 1 . 1 . 5 8 . 1 4 5 1 8 8 4 5 Max in Single Turn 7 | . 1 1 . 1 1 1 1 1 . . . . . . 1 . 1 1 . 1 2 1 1 1 7 1 3 Garrison Access 3 | . . . . . . . 1 . . . . . . . . . . . . . 1 . . . . . 1 Garrison Relay 25 | . . . . . . 5 . 4 . . . . . . . . . 2 . . . 4 . 6 . 4 . Machines Repaired . | . . . . . . . . . . . . . . . . . . . . . . . . . . . . Machines Dismantled . | . . . . . . . . . . . . . . . . . . . . . . . . . . . . Machines Sabotaged . | . . . . . . . . . . . . . . . . . . . . . . . . . . . . Overloaded Fab Kills . | . . . . . . . . . . . . . . . . . . . . . . . . . . . . Hacking | -11 -10 -10 -10 -9 -8 -8 -7 -7 -7 -7 -7 -7 -7 -6 -6 -6 -6 -6 -6 -6 -5 -5 -5 -5 -4 -4 -4 --------- Run | Yrd Mat Min Exi Min Mat Gar Fac Gar Fac Low Low Zio Dee Pro Fac Was Fac Gar Fac DSF Fac Gar Fac Gar Fac Gar Fac Machines Accessed 128 | . 6 . 5 . 9 3 28 4 5 1 . 1 . . 6 . 24 1 6 . 14 2 5 1 5 2 . Terminals 81 | . 6 . . . 6 3 15 4 2 . . . . . 4 . 14 1 6 . 8 2 3 1 4 2 . Fabricators 13 | . . . . . . . 3 . . . . . . . 2 . 5 . . . 2 . 1 . . . . Repair Stations 10 | . . . . . . . 4 . 1 . . . . . . . 3 . . . 2 . . . . . . Recycling Units . | . . . . . . . . . . . . . . . . . . . . . . . . . . . . Scanalyzers 5 | . . . . . 2 . 2 . . . . . . . . . 1 . . . . . . . . . . Garrison Access 12 | . . . . . 1 . 4 . 2 . . . . . . . 1 . . . 2 . 1 . 1 . . Total Hacks 442 | . 20 . 50 . 25 6 102 8 16 4 . 3 . . 20 . 87 5 9 . 45 4 14 1 18 5 . Successful 219 | . 8 . 50 . 12 2 53 3 6 4 . 3 . . 7 . 30 1 5 . 21 1 5 1 6 1 . Failed 220 | . 11 . . . 13 4 49 5 10 . . . . . 13 . 56 4 4 . 23 3 9 . 12 4 . Catastrophic 52 | . 3 . . . 2 . 7 1 1 . . . . . 4 . 13 1 2 . 10 2 3 . 3 . . Database Lockouts 3 | . 1 . . . . . . . . . . . . . . . 1 . . . 1 . . . . . . Manual 106 | . 8 . 2 . 11 . 18 . 2 . . 4 . . 3 . 31 3 1 . 17 . 1 . 5 . . Terminals 266 | . 20 . . . 16 6 57 8 4 . . . . . 17 . 61 5 9 . 30 4 8 1 15 5 . Fabricators 30 | . . . . . . . 5 . . . . . . . 3 . 15 . . . 3 . 4 . . . . Repair Stations 43 | . . . . . . . 21 . 7 . . . . . . . 5 . . . 10 . . . . . . Recycling Units . | . . . . . . . . . . . . . . . . . . . . . . . . . . . . Scanalyzers 26 | . . . . . 8 . 14 . . . . . . . . . 4 . . . . . . . . . . Garrison Access 20 | . . . . . 1 . 5 . 5 . . . . . . . 2 . . . 2 . 2 . 3 . . Terminal Hacks 141 | . 8 . 50 . 6 2 21 3 1 4 . 3 . . 4 . 14 1 5 . 9 1 2 1 5 1 . Record 56 | . 3 . 49 . . . . . . 4 . . . . . . . . . . . . . . . . . Part Schematic 4 | . . . . . . . . . . . . 3 . . . . . . . . . . . . 1 . . Robot Schematic 3 | . . . . . . . 3 . . . . . . . . . . . . . . . . . . . . Robot Analysis 15 | . 3 . . . 4 . 3 . . . . . . . 1 . 1 . . . 3 . . . . . . Prototype ID Bank 14 | . 2 . . . 2 . 5 . . . . . . . 1 . 1 . . . 2 . . . 1 . . Open Door 1 | . . . . . . . . . . . . . . . . . . . . . . . . . 1 . . Open DSF 1 | . . . . . . . . . . . . . . . . . . . 1 . . . . . . . . Level Access Points 2 | . . . . . . . 1 . . . . . . . . . 1 . . . . . . . . . . Branch Access Points 3 | . . . . . . . 1 . . . . . . . 1 . . . . . 1 . . . . . . Emergency Access Points 5 | . . . . . . 1 . 1 . . . . . . . . . 1 . . . . . 1 . 1 . Terminal Index 6 | . . . . . . . 1 . 1 . . . . . . . 1 . 1 . 1 . . . 1 . . Repair Station Index 1 | . . . . . . . . . . . . . . . . . . . 1 . . . . . . . . Alert Level 1 | . . . . . . . . . . . . . . . . . . . 1 . . . . . . . . Unreport Threat 5 | . . . . . . . 3 . . . . . . . . . 1 . 1 . . . . . . . . Disarm Traps 4 | . . . . . . . . . . . . . . . . . 3 . . . . . 1 . . . . Reprogram Traps 1 | . . . . . . . 1 . . . . . . . . . . . . . . . . . . . . Recall Investigation 1 | . . . . . . . . . . . . . . . . . 1 . . . . . . . . . . Recall Reinforcements 2 | . . . . . . . . . . . . . . . 1 . 1 . . . . . . . . . . Zone Layout 11 | . . . . . . . 3 . . . . . . . . . 4 . . . 2 . 1 . 1 . . Garrison Registry 2 | . . . . . . 1 . 1 . . . . . . . . . . . . . . . . . . . Patrol Navigation 1 | . . . . . . . . 1 . . . . . . . . . . . . . . . . . . . Security Stations 1 | . . . . . . . . . . . . . . . . . . . . . . 1 . . . . . Derelict Proto ID Bank 1 | . . . 1 . . . . . . . . . . . . . . . . . . . . . . . . Fabricator Hacks 20 | . . . . . . . 5 . . . . . . . 3 . 8 . . . 2 . 2 . . . . Network Status 3 | . . . . . . . 2 . . . . . . . 1 . . . . . . . . . . . . Load Schematic 10 | . . . . . . . 2 . . . . . . . 1 . 5 . . . 1 . 1 . . . . Build 7 | . . . . . . . 1 . . . . . . . 1 . 3 . . . 1 . 1 . . . . Repair Station Hacks 30 | . . . . . . . 12 . 5 . . . . . . . 5 . . . 8 . . . . . . Scan Component 18 | . . . . . . . 8 . 3 . . . . . . . 2 . . . 5 . . . . . . Repair 11 | . . . . . . . 4 . 2 . . . . . . . 2 . . . 3 . . . . . . Refit 1 | . . . . . . . . . . . . . . . . . 1 . . . . . . . . . . Recycling Unit Hacks . | . . . . . . . . . . . . . . . . . . . . . . . . . . . . Scanalyzer 19 | . . . . . 5 . 12 . . . . . . . . . 2 . . . . . . . . . . Insert Component 8 | . . . . . 2 . 5 . . . . . . . . . 1 . . . . . . . . . . Analyze 11 | . . . . . 3 . 7 . . . . . . . . . 1 . . . . . . . . . . Garrison Access Hacks 9 | . . . . . 1 . 3 . . . . . . . . . 1 . . . 2 . 1 . 1 . . Unlock Access 7 | . . . . . 1 . 2 . . . . . . . . . 1 . . . 1 . 1 . 1 . . Seal Access 2 | . . . . . . . 1 . . . . . . . . . . . . . 1 . . . . . . Unauthorized Hacks . | . . . . . . . . . . . . . . . . . . . . . . . . . . . . Terminals . | . . . . . . . . . . . . . . . . . . . . . . . . . . . . Fabricators . | . . . . . . . . . . . . . . . . . . . . . . . . . . . . Repair Stations . | . . . . . . . . . . . . . . . . . . . . . . . . . . . . Recycling Units . | . . . . . . . . . . . . . . . . . . . . . . . . . . . . Scanalyzers . | . . . . . . . . . . . . . . . . . . . . . . . . . . . . Garrison Access . | . . . . . . . . . . . . . . . . . . . . . . . . . . . . Data Cores Recovered . | . . . . . . . . . . . . . . . . . . . . . . . . . . . . Used . | . . . . . . . . . . . . . . . . . . . . . . . . . . . . Hacking Detections 104 | . 6 . . . 8 2 24 4 5 . . . . . 5 . 21 1 3 . 12 2 5 1 3 2 . Full Trace Events 25 | . 4 . . . 1 1 4 1 2 . . . . . 2 . 6 . . . 1 1 1 . . 1 . Feedback Events 3 | . . . . . . . 2 . . . . . . . . . 1 . . . . . . . . . . Corruption 2 | . . . . . . . 1 . . . . . . . . . 1 . . . . . . . . . . Hackware Fried 1 | . . . . . . . 1 . . . . . . . . . . . . . . . . . . . . Feedback Blocked . | . . . . . . . . . . . . . . . . . . . . . . . . . . . . Robot Schematics Acquired 3 | . . . . . . . 3 . . . . . . . . . . . . . . . . . . . . Robots Built 14 | . . . . . . . 2 . . . . . . . 2 . 6 . . . 2 . 2 . . . . Authchips 1 | . . . . . . . 1 . . . . . . . . . . . . . . . . . . . . Time 670 | . . . . . . . 67 . . . . . . . 67 . 335 . . . 134 . 67 . . . . Total Robot Build Rating 56 | . . . . . . . 8 . . . . . . . 8 . 24 . . . 8 . 8 . . . . Part Schematics Acquired 11 | . . . . . 1 . 5 . . . . 3 . . . . 1 . . . . . . . 1 . . Parts Built . | . . . . . . . . . . . . . . . . . . . . . . . . . . . . Authchips . | . . . . . . . . . . . . . . . . . . . . . . . . . . . . Time . | . . . . . . . . . . . . . . . . . . . . . . . . . . . . Total Part Build Rating . | . . . . . . . . . . . . . . . . . . . . . . . . . . . . Parts Repaired 11 | . . . . . . . 4 . 2 . . . . . . . 2 . . . 3 . . . . . . Time 542 | . . . . . . . 156 . 132 . . . . . . . 86 . . . 168 . . . . . . Parts Recycled . | . . . . . . . . . . . . . . . . . . . . . . . . . . . . Recycled Matter . | . . . . . . . . . . . . . . . . . . . . . . . . . . . . Retrieved Matter . | . . . . . . . . . . . . . . . . . . . . . . . . . . . . Retrieved Components . | . . . . . . . . . . . . . . . . . . . . . . . . . . . . Parts Scanalyzed 8 | . . . . . 2 . 5 . . . . . . . . . 1 . . . . . . . . . . Part Schematics Acquired 7 | . . . . . 1 . 5 . . . . . . . . . 1 . . . . . . . . . . Parts Damaged 2 | . . . . . . . 1 . . . . . . . . . 1 . . . . . . . . . . Bothacking | -11 -10 -10 -10 -9 -8 -8 -7 -7 -7 -7 -7 -7 -7 -6 -6 -6 -6 -6 -6 -6 -5 -5 -5 -5 -4 -4 -4 ------------ Run | Yrd Mat Min Exi Min Mat Gar Fac Gar Fac Low Low Zio Dee Pro Fac Was Fac Gar Fac DSF Fac Gar Fac Gar Fac Gar Fac Used RIF Installer 1 | . . . . . . . . . . . . . . . . . . . . . . . . . . 1 . Robots Hacked 1 | . . . . . . . . . . . . . . . . . . . . . . . . . . . 1 Non-combat 1 | . . . . . . . . . . . . . . . . . . . . . . . . . . . 1 Combat . | . . . . . . . . . . . . . . . . . . . . . . . . . . . . Robot Hacks Applied 1 | . . . . . . . . . . . . . . . . . . . . . . . . . . . 1 find_recycling 1 | . . . . . . . . . . . . . . . . . . . . . . . . . . . 1 Relay Couplers Released 94 | . . . . . . 20 . 12 . . . . . . . . . 7 . . . 14 . 25 . 15 1 Machine Destruction 94 | . . . . . . 20 . 12 . . . . . . . . . 7 . . . 14 . 25 . 15 1 Attached 1 | . . . . . . . . . . . . . . . . . . . . . . . . . . 1 . Fabnet Peak Effective % . | . . . . . . . . . . . . . . . . . . . . . . . . . . . . Robots Rewired 1 | . . . . . . . . . . . . . . . . . . . . . . . . . 1 . . Allies Hacked 2 | . . . . . . . . . . . . . . . 1 . . . . . 1 . . . . . . Hacks Repelled . | . . . . . . . . . . . . . . . . . . . . . . . . . . . . Allies | -11 -10 -10 -10 -9 -8 -8 -7 -7 -7 -7 -7 -7 -7 -6 -6 -6 -6 -6 -6 -6 -5 -5 -5 -5 -4 -4 -4 -------- Run | Yrd Mat Min Exi Min Mat Gar Fac Gar Fac Low Low Zio Dee Pro Fac Was Fac Gar Fac DSF Fac Gar Fac Gar Fac Gar Fac Total Allies 21 | . . 3 . . . . 2 . . . . . . . 3 1 6 . . . 3 . 2 . 1 . . Largest Group 3 | . . 3 3 3 . . 2 2 . . . . . . 3 2 2 2 . . 3 . 2 2 1 . . Highest-Rated Group 103 | . . 40 40 40 . . 74 74 . . . . . . 93 56 74 74 . . 103 . 74 74 49 . . Highest-Rated Ally 49 | . . 16 16 16 . . 37 37 . . . . . . 37 37 37 37 . . 37 . 37 37 49 . . Total Orders 3 | . . . . . . . . . . . . . . . . . . . . . . . . 3 . . . STAY 1 | . . . . . . . . . . . . . . . . . . . . . . . . 1 . . . FOLLOW 2 | . . . . . . . . . . . . . . . . . . . . . . . . 2 . . . Ally Attacks 166 | . . . . 13 . . 1 44 . . . . 26 . 10 3 25 8 . . 20 . 8 7 1 . . Total Damage 6407 | . . . . 79 . . 17 2409 . . . . 1154 . 223 6 994 344 . . 758 . 233 166 24 . . Kills 44 | . . . . 1 . . 1 19 . . . . 6 . 2 . 5 2 . . 5 . 1 2 . . . Allies Corrupted . | . . . . . . . . . . . . . . . . . . . . . . . . . . . . Allies Melted . | . . . . . . . . . . . . . . . . . . . . . . . . . . . . Turrets Deployed 3 | . . . . . . . . 2 . . . . 1 . . . . . . . . . . . . . . Intel | -11 -10 -10 -10 -9 -8 -8 -7 -7 -7 -7 -7 -7 -7 -6 -6 -6 -6 -6 -6 -6 -5 -5 -5 -5 -4 -4 -4 ------- Run | Yrd Mat Min Exi Min Mat Gar Fac Gar Fac Low Low Zio Dee Pro Fac Was Fac Gar Fac DSF Fac Gar Fac Gar Fac Gar Fac Robot Analysis Total 15 | . 3 . . . 4 . 3 . . . . . . . 1 . 1 . . . 3 . . . . . . Derelict Logs Recovered 8 | . . 1 . 1 . . . . . 3 . 2 . 1 . . . . . . . . . . . . . Drone Launches . | . . . . . . . . . . . . . . . . . . . . . . . . . . . . Drone Recoveries . | . . . . . . . . . . . . . . . . . . . . . . . . . . . . Exploration | -11 -10 -10 -10 -9 -8 -8 -7 -7 -7 -7 -7 -7 -7 -6 -6 -6 -6 -6 -6 -6 -5 -5 -5 -5 -4 -4 -4 ------------- Run | Yrd Mat Min Exi Min Mat Gar Fac Gar Fac Low Low Zio Dee Pro Fac Was Fac Gar Fac DSF Fac Gar Fac Gar Fac Gar Fac Turns Passed 20084 | 85 897 650 326 533 643 625 2427 879 947 521 416 586 538 145 539 231 1567 1780 278 103 1775 865 198 1152 254 891 233 Spaces Moved 25442 | 47 733 622 339 335 526 679 3351 1098 902 963 815 1240 971 274 622 247 2237 1172 344 63 2362 1406 433 1480 597 1374 210 Core 114 | 2 . . . 6 . . . . . . . . . . . . . 2 . . 1 . . . . 57 46 Treads . | . . . . . . . . . . . . . . . . . . . . . . . . . . . . Legs 179 | . . . . 24 . 155 . . . . . . . . . . . . . . . . . . . . . Wheels 2718 | 45 733 622 339 305 526 148 . . . . . . . . . . . . . . . . . . . . . Hover 14809 | . . . . . . 16 2302 1098 902 963 815 1240 971 274 622 247 2237 1063 344 63 1326 . . . . 162 164 Flight 7622 | . . . . . . 360 1049 . . . . . . . . . . 107 . . 1035 1406 433 1480 597 1155 . Fastest Speed 20 | 50 80 90 90 80 85 34 34 45 43 43 43 43 43 48 44 44 44 32 53 53 25 25 26 26 26 20 30 Average Speed 48 | 84 83 90 90 95 85 67 45 47 56 43 43 43 46 48 44 44 49 58 53 79 43 26 26 29 26 34 62 Slowest Speed 200 | 90 90 90 90 200 86 190 116 108 108 43 43 43 108 48 48 44 160 155 53 108 195 95 26 94 26 150 120 Overloaded Moves 39 | . . . . . . . . . . . . . . . . . . 39 . . . . . . . . . Propulsion Burnouts . | . . . . . . . . . . . . . . . . . . . . . . . . . . . . Robots Hopped 22 | . . . . . . 1 1 4 . . . . . . . . . 1 . . 10 1 . . 3 1 . Cave-ins Triggered . | . . . . . . . . . . . . . . . . . . . . . . . . . . . . Exploration Rate (%) 56 | 3 84 93 62 38 45 72 72 82 29 89 82 85 76 42 18 93 65 63 8 49 46 85 10 87 14 82 6 Regions Visited 27 Branch Regions 8 Pre-discovered Areas 4 | . . 1 1 . . . . . . 1 . 1 . . . . . . . . . . . . . . . Known Exits Taken 9 | . . . . . 1 . 1 . 1 . . . . 1 . . 1 . 1 . 1 . 1 . 1 . . Unknown Exits Taken 9 | 1 1 1 1 1 . . . . . 1 1 1 1 . . . . . . . . . . . . . . Scrap Searched 13 | . . 1 . 1 . . . . . 2 4 4 . 1 . . . . . . . . . . . . . Spaces Dug 30 | . . . . 10 2 . . . . . . . . . 14 . 2 . . . . . . . . 2 . Terrain Destroyed 1374 | . 1 3 . 61 128 152 97 . 18 . 15 . 9 . 16 1 55 12 1 111 285 73 26 62 25 219 4 Melee 1 | . . . . . . . . . . . . . . . . . 1 . . . . . . . . . . Projectile 248 | . 1 3 . 5 3 . 55 . 1 . 6 . 2 . 16 1 13 12 1 4 42 10 4 30 2 33 4 AOE 1125 | . . . . 56 125 152 42 . 17 . 9 . 7 . . . 41 . . 107 243 63 22 32 23 186 . Terrain Rammed . | . . . . . . . . . . . . . . . . . . . . . . . . . . . . Walls Destroyed . | . . . . . . . . . . . . . . . . . . . . . . . . . . . . Machines Disabled . | . . . . . . . . . . . . . . . . . . . . . . . . . . . . Actions | -11 -10 -10 -10 -9 -8 -8 -7 -7 -7 -7 -7 -7 -7 -6 -6 -6 -6 -6 -6 -6 -5 -5 -5 -5 -4 -4 -4 --------- Run | Yrd Mat Min Exi Min Mat Gar Fac Gar Fac Low Low Zio Dee Pro Fac Was Fac Gar Fac DSF Fac Gar Fac Gar Fac Gar Fac Total 31078 | 67 883 670 361 472 634 783 3937 1392 1176 1058 846 1293 1028 278 794 290 2546 2169 428 85 2885 1781 504 2070 685 1672 291 Wait 2833 | . 33 13 5 71 18 4 327 165 151 82 4 28 4 . 114 3 142 830 64 2 281 90 29 238 38 46 51 Move 25373 | 46 732 621 338 334 526 676 3348 1089 901 962 814 1239 970 273 622 246 2236 1169 343 62 2341 1403 433 1479 590 1370 210 Hop 22 | . . . . . . 1 1 4 . . . . . . . . . 1 . . 10 1 . . 3 1 . Pick Up 119 | 1 14 2 9 3 5 5 12 3 5 3 . 4 4 . 2 . 13 10 5 . 7 2 . 3 3 4 . Fast Attach 230 | 7 6 . 2 4 7 5 21 1 10 . 3 6 8 . 2 . 18 16 1 2 47 12 4 11 9 18 10 Attach 85 | . . . . 4 5 5 5 3 3 1 1 . 4 . 3 . 10 11 2 . 5 . . 4 4 13 2 Detach 65 | . . . . 3 3 1 7 1 4 . . 5 2 . . . 7 8 . . 5 . 1 2 3 13 . Swap 184 | 3 5 5 1 6 4 2 27 7 7 3 4 5 7 1 1 1 16 9 2 4 21 11 4 17 3 8 . Drop 254 | . 21 6 6 6 5 8 26 3 11 2 3 6 11 . 3 . 20 15 4 1 38 9 5 16 12 16 1 Fire 1254 | 10 72 23 . 41 61 46 163 38 84 5 17 . 17 4 47 40 67 49 . 14 130 80 10 99 10 110 17 Melee 40 | . . . . . . . . . . . . . . . . . 15 18 7 . . . . . . . . Ram 2 | . . . . . . . . . . . . . . . . . . . . . . . . . . 2 . Kick . | . . . . . . . . . . . . . . . . . . . . . . . . . . . . Crush . | . . . . . . . . . . . . . . . . . . . . . . . . . . . . Escape Stasis 606 | . . . . . . 30 . 78 . . . . . . . . 2 33 . . . 173 18 201 . 71 . Rewire 11 | . . . . . . . . . . . . . 1 . . . . . . . . . . . 10 . . Trap . | . . . . . . . . . . . . . . . . . . . . . . . . . . . . Miscellaneous . | . . . . . . . . . . . . . . . . . . . . . . . . . . . . Route ------- -11/Scrapyard -10/Materials (discovered 4 exits: [*Mat x2] / [*Min x2]) -10/Mines (discovered 2 exits: [*Mat] / *Exi) -10/Exiles -9/Mines -8/Materials (discovered 2 exits: *Fac / Gar) -8/Garrison (discovered 3 exits: *Fac x3) -7/Factory (discovered 8 exits: *Fac x4 / *Low x2 / Gar / Gar) -7/Garrison (discovered 3 exits: *Fac x3) -7/Factory (discovered 3 exits: *Fac / *Low x2) -7/Lower Caves -7/Lower Caves (discovered 2 exits: *Fac / *Zio) -7/Zion (discovered 2 exits: [*Dee] / [*Pro]) -7/Deep Caves -6/Proximity Caves -6/Factory (discovered 2 exits: *Low x2) -6/Waste -6/Factory (discovered 7 exits: *Fac x4 / *Low x2 / Gar) -6/Garrison (discovered 2 exits: *Fac x2) -6/Factory -6/DSF -5/Factory (discovered 4 exits: *Fac / *Upp x2 / Gar) -5/Garrison (discovered 3 exits: *Fac x3) -5/Factory -5/Garrison (discovered 3 exits: *Fac x3) -4/Factory (discovered 2 exits: [*Ext] / Gar) -4/Garrison (discovered 3 exits: [*Fac x3]) -4/Factory (discovered 1 exit: [*Res]) History --------- Turn | Location | Event 18 | -11/Scrapyard | Discovered new exit (range 16) 86 | -11/Scrapyard | Entered Materials 302 | -10/Materials | Build established: Mutant 365 | -10/Materials | Discovered new exit (range 16) 448 | -10/Materials | Discovered new exit (range 7) 560 | -10/Materials | Discovered new exit (range 6) 725 | -10/Materials | Central database locked down 803 | -10/Materials | Discovered new exit (range 13) 983 | -10/Materials | Entered Mines 1175 | -10/Mines | Build established: Scavenger-Mutant 1182 | -10/Mines | Deemed a non-threat by the Exiles lab entrance 1182 | -10/Mines | Discovered new exit (range 5) 1252 | -10/Mines | Assisted by bots powering up and referring to "LRC-V3" 1278 | -10/Mines | A weapon hastily lodged in a ceiling crevice suddenly fell to the ground 1328 | -10/Mines | Learned location of Mines (-9) 1329 | -10/Mines | Joined a pair of Derelicts in attacking an 0b10 outpost 1502 | -10/Mines | Received a Rocket Launcher from a helpful Derelict 1547 | -10/Mines | Discovered new exit (range 9) 1633 | -10/Mines | Entered Exiles 1633 | -10/Exiles | Accompanied by 3 allies 1656 | -10/Exiles | Met 8R-AWN 1670 | -10/Exiles | Met EX-HEX 1695 | -10/Exiles | Met EX-BIN 1706 | -10/Exiles | Aligned with FarCom system 1706 | -10/Exiles | Given EX-Vault access code 1742 | -10/Exiles | Opened EX-Vault 1748 | -10/Exiles | Found Modified TNC 1768 | -10/Exiles | Warned to stay clear of 0b10 Research branches 1781 | -10/Exiles | Exiles lab attacked by MAIN.C 1811 | -10/Exiles | Found Deploy-a-Sentry 1813 | -10/Exiles | Found Deploy-a-Sentry 1815 | -10/Exiles | Found Deploy-a-Sentry 1866 | -10/Exiles | Learned location of Zion (-7) 1946 | -10/Exiles | Discovered new exit (range 10) 1959 | -10/Exiles | Left Exiles lab with Deploy-a-Sentry 1959 | -10/Exiles | Entered Mines 1959 | -9/Mines | Accompanied by 3 allies 1960 | -9/Mines | Assembled infested the area 1987 | -9/Mines | Learned Materials emergency access door positions 2037 | -9/Mines | Lost 4 allies 2069 | -9/Mines | Destroyed 8 combat bots 2083 | -9/Mines | Core integrity fell below 50% 2106 | -9/Mines | Discovered new exit (range 7) 2132 | -9/Mines | Lost 3 parts (1p1n1w) 2492 | -9/Mines | Entered Materials 2492 | -8/Materials | Evolved 4 slots: Propulsion x2, Utility x2 2814 | -8/Materials | Lost 4 parts (1p1n2w) 2979 | -8/Materials | Discovered new exit (range 15) 3135 | -8/Materials | Identified exit to Garrison 3135 | -8/Materials | Entered Garrison 3160 | -8/Garrison | Discovered new exit (range 48) 3160 | -8/Garrison | Discovered new exit (range 61) 3160 | -8/Garrison | Discovered new exit (range 39) 3186 | -8/Garrison | Triggered checkpoint 3209 | -8/Garrison | Garrison Relay disabled 3266 | -8/Garrison | Triggered checkpoint 3292 | -8/Garrison | Triggered checkpoint 3345 | -8/Garrison | Lost 3 parts (2n1w) 3352 | -8/Garrison | Destroyed 7 combat bots 3412 | -8/Garrison | Garrison Relay disabled 3604 | -8/Garrison | Triggered checkpoint 3614 | -8/Garrison | Garrison Relay disabled 3639 | -8/Garrison | Triggered checkpoint 3728 | -8/Garrison | Triggered checkpoint 3760 | -8/Garrison | Entered Factory 3760 | -7/Factory | Evolved 2 slots: Utility x2 3789 | -7/Factory | Identified exit to Garrison 3812 | -7/Factory | Identified exit to Factory 3925 | -7/Factory | Repaired Nuclear Pulse Array 3994 | -7/Factory | Repaired Mic. Fission Core 4086 | -7/Factory | Build established: Hacker-Mutant 4227 | -7/Factory | Repaired Field Propulsion Drive 4273 | -7/Factory | Repaired Gauss Cannon 4695 | -7/Factory | Garrison activated, responded to threat 4766 | -7/Factory | Build established: Scavenger-Mutant 4810 | -7/Factory | Identified exit to Lower Caves 4929 | -7/Factory | System Shield fried by hacking feedback 4953 | -7/Factory | Identified exit to Garrison 4960 | -7/Factory | First assault squad dispatched 4981 | -7/Factory | Destroyed 7 combat bots 5573 | -7/Factory | Build established: Hacker-Mutant 6183 | -7/Factory | Fabricated P-60 Hacker (x2) 6187 | -7/Factory | Entered Garrison 6187 | -7/Garrison | Accompanied by 2 allies 6196 | -7/Garrison | Triggered checkpoint 6222 | -7/Garrison | Garrison Relay disabled 6264 | -7/Garrison | Triggered checkpoint 6289 | -7/Garrison | Discovered new exit (range 12) 6320 | -7/Garrison | Build established: Mutant 6344 | -7/Garrison | Triggered checkpoint 6347 | -7/Garrison | Garrison Relay disabled 6431 | -7/Garrison | Discovered new exit (range 13) 6462 | -7/Garrison | DAS Turret deployed 6470 | -7/Garrison | DAS Turret deployed 6592 | -7/Garrison | Garrison Relay disabled 6642 | -7/Garrison | Triggered checkpoint 6722 | -7/Garrison | Discovered new exit (range 9) 6748 | -7/Garrison | Discovered new exit (range 61) 6748 | -7/Garrison | Discovered new exit (range 49) 6748 | -7/Garrison | Discovered new exit (range 14) 7066 | -7/Garrison | Entered Factory 7112 | -7/Factory | Discovered exit to Factory (range 15) 7466 | -7/Factory | First assault squad dispatched 7533 | -7/Factory | Repaired Broken Imp. Airjet 7584 | -7/Factory | Repaired Gravmag System 7590 | -7/Factory | Core integrity fell below 50% 7783 | -7/Factory | Garrison activated, responded to threat 8005 | -7/Factory | Discovered exit to Lower Caves (range 11) 8013 | -7/Factory | Discovered exit to Lower Caves (range 15) 8013 | -7/Factory | Entered Lower Caves 8027 | -7/Lower Caves | Learned Factory stockpile data 8054 | -7/Lower Caves | Met a Warlord Commander 8055 | -7/Lower Caves | Learned location of Warlord (-5) 8056 | -7/Lower Caves | Warlord Commander delivered Encrypted Comm Array 8060 | -7/Lower Caves | Found Encrypted Comm Array 8208 | -7/Lower Caves | Learned 4 Factory zone layouts 8218 | -7/Lower Caves | Learned Research trap positions 8218 | -7/Lower Caves | Learned Factory security intel 8218 | -7/Lower Caves | Learned Armory terminal intel 8218 | -7/Lower Caves | Learned Research garrison access intel 8219 | -7/Lower Caves | Learned Factory machine intel 8289 | -7/Lower Caves | Attracted the attention of an 0b10 checkpoint 8517 | -7/Lower Caves | Attracted the attention of an 0b10 outpost 8530 | -7/Lower Caves | Discovered new exit (range 8) 8534 | -7/Lower Caves | Entered another Lower Caves area 8538 | -7/Lower Caves | Discovered exit to Factory (range 9) 8572 | -7/Lower Caves | Attracted the attention of an 0b10 checkpoint 8636 | -7/Lower Caves | Encountered a Warlord checkpoint 8760 | -7/Lower Caves | Discovered new exit (range 11) 8950 | -7/Lower Caves | Entered Zion 8968 | -7/Zion | System corruption cleaned by Quarantine Array 8984 | -7/Zion | Acquired unknown access codes intercepted by a Zionite 9000 | -7/Zion | Discovered new exit (range 16) 9047 | -7/Zion | Learned location of 1 exit from Proximity Caves 9082 | -7/Zion | Found Prototype Processor 9082 | -7/Zion | Identified Exp. Targeting Computer 9084 | -7/Zion | Found Prototype Processor 9084 | -7/Zion | Identified Exp. Target Analyzer 9089 | -7/Zion | Found Prototype Processor 9089 | -7/Zion | Identified Spectral Analyzer 9102 | -7/Zion | Found Prototype Processor 9102 | -7/Zion | Identified Exp. Core Analyzer 9104 | -7/Zion | Found Prototype Hackware 9136 | -7/Zion | Visited the Megawrench Repair Shop 9142 | -7/Zion | Megawrench repaired 11 parts 9186 | -7/Zion | Opened final containment barrier to the Deep Caves 9247 | -7/Zion | Rebuked by Imprinter 9281 | -7/Zion | Given A8's code to call for help 9402 | -7/Zion | Discovered new exit (range 5) 9403 | -7/Zion | Saw the warning signs outside the Deep Caves entrance 9536 | -7/Zion | Entered Deep Caves 9651 | -7/Deep Caves | Attacked by Z-Imprinter 9652 | -7/Deep Caves | DAS Turret deployed 9661 | -7/Deep Caves | Allies destroyed Z-Imprinter 9675 | -7/Deep Caves | Core integrity fell below 20% 9675 | -7/Deep Caves | Z-Facility disabled 9792 | -7/Deep Caves | Lost 5 parts (3n1u1w) 9797 | -7/Deep Caves | Found Prototype Protection 9797 | -7/Deep Caves | Identified Zio. Weapon Casing 9815 | -7/Deep Caves | Found Prototype Protection 9815 | -7/Deep Caves | Identified Zio. Heavy Carapace 9999 | -7/Deep Caves | Discovered new exit (range 6) 10074 | -7/Deep Caves | Entered Proximity Caves 10182 | -6/Proximity Caves | Spotted B-75 Beast 10217 | -6/Proximity Caves | Learned Factory terminal intel 10219 | -6/Proximity Caves | Entered Factory 10219 | -6/Factory | Evolved 2 slots: Propulsion x1, Utility x1 10223 | -6/Factory | Loaded intel: 301 machine locations 10224 | -6/Factory | Loaded intel: 25 terminal locations 10240 | -6/Factory | Identified Exp. System Shield 10573 | -6/Factory | Identified exit to Lower Caves 10721 | -6/Factory | Fabricated P-60 Hacker? 10749 | -6/Factory | Hacker 5b assimilated hostile W-25 Informer 10758 | -6/Factory | Sucked down chute 10758 | -6/Factory | Entered Waste 10758 | -6/Waste | Met up with 1 ally sucked down the chute earlier 10763 | -6/Waste | Spotted C-40 Crusher 10765 | -6/Waste | 1 allies followed down the chute 10773 | -6/Waste | EMP discharged 10789 | -6/Waste | Destroyed C-40 Crusher 10803 | -6/Waste | Spotted C-40 Crusher 10837 | -6/Waste | Destroyed C-40 Crusher 10841 | -6/Waste | Spotted C-40 Crusher 10850 | -6/Waste | Spotted C-40 Crusher 10857 | -6/Waste | Destroyed C-40 Crusher 10873 | -6/Waste | EMP discharged 10873 | -6/Waste | System corruption reached 10% 10875 | -6/Waste | Build established: Hacker-Mutant 10910 | -6/Waste | Destroyed C-40 Crusher 10921 | -6/Waste | Spotted C-40 Crusher 10931 | -6/Waste | Destroyed C-40 Crusher 10942 | -6/Waste | Spotted C-40 Crusher 10970 | -6/Waste | Discovered new exit (range 10) 10973 | -6/Waste | EMP discharged 10989 | -6/Waste | Entered Factory 11167 | -6/Factory | Repaired Broken Imp. Gravmag System 11213 | -6/Factory | Repaired Imp. Hover Unit 11477 | -6/Factory | Spotted B-75 Beast 11486 | -6/Factory | Identified exit to Factory 11533 | -6/Factory | Garrison activated, responded to threat 11544 | -6/Factory | Discovered exit to Lower Caves (range 7) 11550 | -6/Factory | Fabricated P-60 Hacker (x2) 11828 | -6/Factory | Fabricated P-60 Hacker? 11877 | -6/Factory | Central database locked down 11915 | -6/Factory | Lost 7 parts (4n1u2w) 12003 | -6/Factory | Discovered exit to Lower Caves (range 5) 12241 | -6/Factory | Identified exit to Garrison 12543 | -6/Factory | Fabricated P-60 Hacker (x2) 12556 | -6/Factory | Entered Garrison 12556 | -6/Garrison | Accompanied by 2 allies 12640 | -6/Garrison | Triggered checkpoint 12687 | -6/Garrison | Garrison Relay disabled 12693 | -6/Garrison | Lost 3 parts (3n) 12776 | -6/Garrison | Triggered checkpoint 13019 | -6/Garrison | Discovered new exit (range 14) 13036 | -6/Garrison | Spotted B-75 Beast 13057 | -6/Garrison | Core integrity fell below 50% 13103 | -6/Garrison | Lost 9 parts (1p3n3u2w) 13231 | -6/Garrison | Core integrity fell below 20% 13266 | -6/Garrison | Triggered checkpoint 13268 | -6/Garrison | Triggered checkpoint 13294 | -6/Garrison | Discovered new exit (range 15) 13559 | -6/Garrison | H-XX Assembler disabled 14309 | -6/Garrison | Garrison Relay disabled 14336 | -6/Garrison | Entered Factory 14348 | -6/Factory | Identified exit to DSF 14614 | -6/Factory | Entered DSF 14642 | -6/DSF | Additional patrols routed to DSF 14645 | -6/DSF | Discovered exit to Factory (range 15) 14717 | -6/DSF | Entered Factory 14717 | -5/Factory | Evolved 2 slots: Utility x2 14836 | -5/Factory | Repaired Lyr. Heavy Armor Plating 14909 | -5/Factory | Fabricated P-60 Hacker? 15000 | -5/Factory | Build established: Mutant 15013 | -5/Factory | Repaired Mic. Antimatter Reactor 15059 | -5/Factory | Repaired Gravmag System 15086 | -5/Factory | Hacker 6b assimilated hostile G-50 Soldier 15220 | -5/Factory | Identified exit to Upper Caves 15438 | -5/Factory | Build established: Hacker-Mutant 15438 | -5/Factory | Central database locked down 15493 | -5/Factory | Discovered new exit (range 15) 15500 | -5/Factory | Cargo convoy interrupted 15552 | -5/Factory | Destroyed 11 combat bots 15889 | -5/Factory | System corruption reached 10% 15917 | -5/Factory | First assault squad dispatched 16117 | -5/Factory | Identified exit to Garrison 16207 | -5/Factory | Build established: Hacker-Sprinter 16452 | -5/Factory | High security lockdown imminent 16492 | -5/Factory | Entered Garrison 16511 | -5/Garrison | Garrison Relay disabled 16514 | -5/Garrison | Triggered checkpoint 16567 | -5/Garrison | Spotted B-90 Cyclops 16567 | -5/Garrison | Spotted B-86 Titan 16592 | -5/Garrison | Spotted B-75 Beast 16637 | -5/Garrison | Destroyed B-75 Beast 16722 | -5/Garrison | Discovered new exit (range 12) 16780 | -5/Garrison | Destroyed 7 combat bots 16780 | -5/Garrison | Garrison Relay disabled 16820 | -5/Garrison | Triggered checkpoint 16834 | -5/Garrison | Discovered new exit (range 13) 16906 | -5/Garrison | Triggered checkpoint 16962 | -5/Garrison | Triggered checkpoint 17008 | -5/Garrison | Destroyed 7 combat bots 17015 | -5/Garrison | Learned Factory security intel 17111 | -5/Garrison | Garrison Relay disabled 17144 | -5/Garrison | Triggered checkpoint 17190 | -5/Garrison | Discovered new exit (range 15) 17285 | -5/Garrison | Build established: Scavenger-Sprinter 17292 | -5/Garrison | Triggered checkpoint 17357 | -5/Garrison | Entered Factory 17436 | -5/Factory | Fabricated P-60 Hacker (x2) 17540 | -5/Factory | Identified exit to Garrison 17555 | -5/Factory | Entered Garrison 17555 | -5/Garrison | Accompanied by 2 allies 17582 | -5/Garrison | Triggered checkpoint 17655 | -5/Garrison | Garrison Relay disabled 17704 | -5/Garrison | Triggered checkpoint 17741 | -5/Garrison | Garrison Relay disabled 17770 | -5/Garrison | Spotted B-75 Beast 17770 | -5/Garrison | Spotted B-75 Beast 17790 | -5/Garrison | Spotted B-75 Beast 17834 | -5/Garrison | Destroyed B-75 Beast 17845 | -5/Garrison | Triggered checkpoint 17886 | -5/Garrison | Destroyed 13 combat bots 18067 | -5/Garrison | Core integrity fell below 50% 18115 | -5/Garrison | Spotted B-75 Beast 18124 | -5/Garrison | Spotted B-75 Beast 18129 | -5/Garrison | Discovered new exit (range 15) 18142 | -5/Garrison | Triggered checkpoint 18186 | -5/Garrison | Garrison Relay disabled 18245 | -5/Garrison | Garrison Relay disabled 18318 | -5/Garrison | Garrison Relay disabled 18326 | -5/Garrison | Discovered new exit (range 14) 18358 | -5/Garrison | Discovered new exit (range 11) 18372 | -5/Garrison | Triggered checkpoint 18457 | -5/Garrison | Garrison Relay disabled 18529 | -5/Garrison | Destroyed B-75 Beast 18543 | -5/Garrison | Destroyed B-75 Beast 18555 | -5/Garrison | Lost 6 parts (1p2n2u1w) 18608 | -5/Garrison | Triggered checkpoint 18707 | -5/Garrison | Entered Factory 18707 | -4/Factory | Evolved 2 slots: Propulsion x1, Utility x1 18716 | -4/Factory | Identified exit to Garrison 18759 | -4/Factory | Discovered new exit (range 6) 18961 | -4/Factory | Entered Garrison 18996 | -4/Garrison | Triggered checkpoint 19040 | -4/Garrison | Triggered checkpoint 19041 | -4/Garrison | Destroyed 7 combat bots 19092 | -4/Garrison | Assembled breached garrison interior 19173 | -4/Garrison | Garrison Relay disabled 19180 | -4/Garrison | Garrison Relay disabled 19212 | -4/Garrison | Spotted B-86 Titan 19212 | -4/Garrison | Spotted B-86 Titan 19236 | -4/Garrison | Discovered new exit (range 10) 19236 | -4/Garrison | Spotted B-90 Cyclops 19246 | -4/Garrison | Spotted B-75 Beast 19476 | -4/Garrison | Discovered new exit (range 8) 19489 | -4/Garrison | Garrison Relay disabled 19530 | -4/Garrison | Installed Relay Interface Framework 19608 | -4/Garrison | Lost 5 parts (1p3n1w) 19662 | -4/Garrison | Destroyed 9 combat bots 19834 | -4/Garrison | Discovered new exit (range 15) 19852 | -4/Garrison | Entered Factory 19882 | -4/Factory | Lost 10 parts (1p5n3u1w) 19882 | -4/Factory | Discovered new exit (range 5) 19931 | -4/Factory | Found Unknown Device 19931 | -4/Factory | Identified Quantum Capacitor 20060 | -4/Factory | Core integrity fell below 50% 20085 | -4/Factory | Self-destructed Last Messages --------------- 20063_ K-01 Serf collects debris. 20065_ Imp. Remote Datajack severed. 20066_ Acquired Hardcell Cannon. 20067_ K-01 Serf collects debris. 20068_ Destroyed Unknown Wheel. 20070_ Linear Gravjet severed. 20071_ R-10 Processor collects Imp. Remote Datajack. 20072_ C-35 Carver knocked back. 20075_ R-10 Processor collects Linear Gravjet. 20076_ Hardcell Cannon severed. 20077_ Linear Gravjet destroyed. 20078_ R-10 Processor collects Hardcell Cannon. 20079_ C-35 Carver knocked back. 20079_ Linear Gravjet severed. 20081_ C-35 Carver destroyed. 20081_ R-10 Processor collects Linear Gravjet. 20082_ R-10 Processor collects Mic. Nuclear Core. 20083_ Hardcell Cannon severed. 20083_ System Shield severed. 20084_ R-10 Processor collects Hardcell Cannon. Map ----- +----------------------------------------------------+ | ???????????????????????????????????????????? | | ???????????????????????????????????????????? | | ???????????????????????????????????????????? | | ???????????????????????????????????????????? | | ???????????????????????????????????????????? | | ???????????????????????????????????????????? | | ???????????????????????????????????????????? | | ???????????????????????????????????????????? | | ???????????????????????????????????????????? | | ##############?????????????????????????????? | | # #?????????????H???????????????? | | # """ """ ""#?????????????????????????????? | | # """ """ ""#?????????????????????????????? | | # """ """ G#?????????????????????????????? | | # ""#?????????????????????????????? | | # """ "#??#+#????????????????????????? | | # " #??# #????????????????????????? | | # #??# #????????????????????????? | | # #??# #????????????????????????? | | # =#??# #????????????????????????? | | # #??# #????????????????????????? | | # #??# #???##???????????????????? | | ??#####/#####;;##=####;##??????????????????? | | ?????# R%=!=% #??????????????????? | | ?????# ^^^ =%c= #??????????????????? | | ?????# R %*c@R #??????????????????? | | ?????# ########;###u #??????????????????? | | ?????# #??######????? #??????????????????? | | ?????# #?? ?????????????????????????? | | ?????# #?"""""""?????????????????????????? | | ?????# #?"""""""?????????????????????????? | | ?????# # """"""" #???????????????????????? | | ?????# # """"""" #??????????????BB???????? | | ?????# + #??????????????BB???????? | | ?????# # #???????????????????????? | | ?????# # #???????????????????????? | | ?????# #?#########???g???????????????????? | | ?????# #?????????????????????????????????? | | ?????# #?????????????????????????????????? | | ?????# #?????????????????????????????????? | | ?????# #?????????????????????????????????? | | ?????# #?????????????????????????????????? | | ?????# #?????????????????????????????????? | | ?????# #?????????????????????????????????? | | ?????# #?????????????????????????????????? | | ?????# #?????????????????????????????????? | | ?????# #????????????? ?????????????????? | | ?????# #????????????? /!???????????????? | | ?????# #????????????? ??????????????? | | ?????# #????????????? ??????????????? | +----------------------------------------------------+ Best States ------------- Heat Dissipation 93 Coolant Potential 240 Energy Generation 27 Energy Capacity 750 Matter Stores 300 Matter Capacity 350 Sight Range 23 Terrain Scan Range 16 Terrain Scan Density 10 Additional Mass Support 12 Armor Coverage 1200 Resistance: TH 20 Propulsion Shielding 66 Weapon Shielding 100 Weapon Cycling 25 Evasion (%) 65 Targeting Accuracy 20 Target Analysis 6 Core Analysis 11 Offensive Hacking 22 Defensive Hacking 38 Relay Coupler Types 1 Relay Coupler Value 29 Authchip Count 2 Item Schematics ----------------- Imp. Light Cannon | -8/Materials | Scanalyzed Field Propulsion Drive | -7/Factory | Scanalyzed Gravmag System | -7/Factory | Scanalyzed Hvy. Missile Launcher | -7/Factory | Scanalyzed Flak Cannon | -7/Factory | Scanalyzed Imp. Light Armor Plating | -7/Factory | Scanalyzed Beamcaster | -7/Zion | Free Battle Rifle | -7/Zion | Free Ripper | -7/Zion | Free Imp. Gravmag System | -6/Factory | Scanalyzed Quantum Reactor | -4/Factory | Hacked Robot Schematics ------------------ P-60 Hacker | -7/Factory | Hacked M-28 Smith | -7/Factory | Hacked I-36 Angel | -7/Factory | Hacked Fabricated ------------ P-60 Hacker | x2 | -7/Factory | Authchip P-60 Hacker | x2 | -6/Factory P-60 Hacker | x2 | -6/Factory P-60 Hacker | x2 | -6/Factory P-60 Hacker | x2 | -6/Factory P-60 Hacker | x2 | -5/Factory P-60 Hacker | x2 | -5/Factory Alien Tech Used ----------------- None Achievements -------------- Are We The Baddies? Challenges ------------ None Game ------ Seed SuspensionBladePod Manual? 0 Play Time 05:49:58 Cumulative 349.8 hours Start 2024.05.15 @ 19:41:15 End 2024.05.16 @ 21:11:27 Sessions 5 Manual Loads 0 Difficulty Rogue Special Mode None Game No. 130 Rogue 130 Adventurer 0 Explorer 0 Win Type - Total 2 Types 0/0/2/0/0/0/0/0/0 Lore% 67 Gallery% 77 Achievement% 60 Wizard Run 0 Options --------- Layout 0 ASCII 0 Keyboard 1 Movement Arrows Keybinds 0 Fullscreen 1 Font 12/Proggy Map View 83x54 Zoom Use 0% Tactical HUD 1 Map Filters NONE Filters NONE Steam 0 RUN: 0762bc45-4ae2-4ba3-a0c3-412641f03222